[Event "*** Titled Tuesday 3|2 Blitz (Late)"]
[Site "Chess.com"]
[Date "2017.01.03"]
[Round "3"]
[White "Hamisandwich"]
[Black "MaestroASK"]
[Result "1/2-1/2"]
[WhiteElo "2386"]
[BlackElo "2463"]
[TimeControl "180+2"]
[EndTime "17:34:33 PST"]
[Termination "Game drawn by stalemate"]

1. a3 {[%clk 0:03:02]} 1... d6 {[%clk 0:03:00.8]} 2. e4 {[%clk 0:02:57.9]} 2...
g6 {[%clk 0:03:01.5]} 3. d4 {[%clk 0:02:58.5]} 3... e5 {[%clk 0:03:02]} 4. dxe5
{[%clk 0:02:55.8]} 4... dxe5 {[%clk 0:03:02.6]} 5. Qxd8+ {[%clk 0:02:57.7]} 5...
Kxd8 {[%clk 0:03:03.3]} 6. Bc4 {[%clk 0:02:54.9]} 6... f6 {[%clk 0:03:02.7]} 7.
f4 {[%clk 0:02:53]} 7... Nd7 {[%clk 0:03:02.3]} 8. Nc3 {[%clk 0:02:50.2]} 8...
c6 {[%clk 0:03:02.5]} 9. Nf3 {[%clk 0:02:49.8]} 9... Bd6 {[%clk 0:02:59.9]} 10.
g3 {[%clk 0:02:36.3]} 10... Ke7 {[%clk 0:03:00.2]} 11. Be3 {[%clk 0:02:34.7]}
11... Bc7 {[%clk 0:03:00.5]} 12. Rd1 {[%clk 0:02:33.9]} 12... exf4 {[%clk
0:02:56.5]} 13. Bxf4 {[%clk 0:02:30.6]} 13... Ne5 {[%clk 0:02:56.1]} 14. Nxe5
{[%clk 0:02:30]} 14... Bxe5 {[%clk 0:02:53]} 15. Bxe5 {[%clk 0:02:30.7]} 15...
fxe5 {[%clk 0:02:53.8]} 16. a4 {[%clk 0:02:02.1]} 16... a5 {[%clk 0:02:52.8]}
17. h3 {[%clk 0:01:48]} 17... Nf6 {[%clk 0:02:52.3]} 18. Kf2 {[%clk 0:01:42.7]}
18... Rf8 {[%clk 0:02:52.1]} 19. Ke3 {[%clk 0:01:41.6]} 19... Bd7 {[%clk
0:02:46.7]} 20. Be2 {[%clk 0:01:41.6]} 20... Rad8 {[%clk 0:02:45.1]} 21. Nb1
{[%clk 0:01:32.4]} 21... Be6 {[%clk 0:02:43.6]} 22. Na3 {[%clk 0:01:30.9]} 22...
Rxd1 {[%clk 0:02:40.3]} 23. Bxd1 {[%clk 0:01:32.8]} 23... Nxe4 {[%clk
0:02:39.4]} 24. Rg1 {[%clk 0:01:22.4]} 24... Nf2 {[%clk 0:02:37.1]} 25. Be2
{[%clk 0:01:21.1]} 25... Nxh3 {[%clk 0:02:36.5]} 26. Rh1 {[%clk 0:01:16.2]}
26... Ng5 {[%clk 0:02:37.1]} 27. c3 {[%clk 0:01:14.4]} 27... Bb3 {[%clk
0:02:32.9]} 28. Rh4 {[%clk 0:01:08.1]} 28... h5 {[%clk 0:02:31.2]} 29. Nb1
{[%clk 0:01:08.5]} 29... Bd5 {[%clk 0:02:22.9]} 30. Nd2 {[%clk 0:01:08.9]} 30...
Kd6 {[%clk 0:02:20.5]} 31. b4 {[%clk 0:01:07.7]} 31... axb4 {[%clk 0:02:20.3]}
32. cxb4 {[%clk 0:01:05.2]} 32... Ra8 {[%clk 0:02:18.2]} 33. a5 {[%clk 0:01:00]}
33... Rf8 {[%clk 0:02:16.3]} 34. Rh2 {[%clk 0:00:45.8]} 34... Ne6 {[%clk
0:02:12.6]} 35. g4 {[%clk 0:00:44.1]} 35... hxg4 {[%clk 0:02:12.2]} 36. Rh7
{[%clk 0:00:38.8]} 36... Rb8 {[%clk 0:02:05.7]} 37. Bxg4 {[%clk 0:00:34.4]}
37... c5 {[%clk 0:01:48.2]} 38. bxc5+ {[%clk 0:00:28.1]} 38... Nxc5 {[%clk
0:01:47]} 39. Rh6 {[%clk 0:00:17.5]} 39... Bf7 {[%clk 0:01:45.2]} 40. Bf5 {[%clk
0:00:18.3]} 40... Rg8 {[%clk 0:01:42.7]} 41. Ne4+ {[%clk 0:00:19.8]} 41... Kc6
{[%clk 0:01:37.9]} 42. Nf6 {[%clk 0:00:14.9]} 42... Rg7 {[%clk 0:01:37.2]} 43.
Nh5 {[%clk 0:00:15.3]} 43... Rg8 {[%clk 0:01:37]} 44. Nf6 {[%clk 0:00:16.8]}
44... Ra8 {[%clk 0:01:35.6]} 45. Bxg6 {[%clk 0:00:15.2]} 45... Bxg6 {[%clk
0:01:34.4]} 46. Rxg6 {[%clk 0:00:17.1]} 46... Rxa5 {[%clk 0:01:33.9]} 47. Ne4+
{[%clk 0:00:16.7]} 47... Kb5 {[%clk 0:01:34.3]} 48. Nd6+ {[%clk 0:00:16.5]}
48... Kb4 {[%clk 0:01:32.1]} 49. Nxb7 {[%clk 0:00:14.2]} 49... Ra3+ {[%clk
0:01:24.9]} 50. Ke2 {[%clk 0:00:14.9]} 50... Nb3 {[%clk 0:01:23.1]} 51. Nd6
{[%clk 0:00:08]} 51... Kc5 {[%clk 0:01:20.8]} 52. Ne4+ {[%clk 0:00:06.6]} 52...
Kd4 {[%clk 0:01:20.4]} 53. Rg4 {[%clk 0:00:07.7]} 53... Ra2+ {[%clk 0:01:18.3]}
54. Kd1 {[%clk 0:00:08.9]} 54... Ke3 {[%clk 0:01:13.9]} 55. Rg3+ {[%clk
0:00:09.2]} 55... Kxe4 {[%clk 0:01:14.3]} 56. Rxb3 {[%clk 0:00:11.1]} 56... Rh2
{[%clk 0:01:14.4]} 57. Ke1 {[%clk 0:00:11.8]} 57... Kd4 {[%clk 0:01:15.2]} 58.
Ra3 {[%clk 0:00:12.9]} 58... e4 {[%clk 0:01:13.6]} 59. Rb3 {[%clk 0:00:14]}
59... Rc2 {[%clk 0:01:13.7]} 60. Kd1 {[%clk 0:00:14.4]} 60... Rc3 {[%clk
0:01:14.4]} 61. Rxc3 {[%clk 0:00:15.4]} 61... Kxc3 {[%clk 0:01:12.6]} 62. Ke2
{[%clk 0:00:17.3]} 62... Kd4 {[%clk 0:01:13.4]} 63. Kd2 {[%clk 0:00:19.2]} 63...
e3+ {[%clk 0:01:14]} 64. Ke2 {[%clk 0:00:20.6]} 64... Ke4 {[%clk 0:01:13.7]} 65.
Ke1 {[%clk 0:00:22.1]} 65... Kd3 {[%clk 0:01:14.5]} 66. Kd1 {[%clk 0:00:23.2]}
66... e2+ {[%clk 0:01:15.7]} 67. Ke1 {[%clk 0:00:24.5]} 67... Ke3 {[%clk
0:01:16.9]} 1/2-1/2

[Event "*** Titled Tuesday 3|2 Blitz (Late)"]
[Site "Chess.com"]
[Date "2017.01.03"]
[Round "3"]
[White "Ez_Chess2016"]
[Black "LazarusIcarus"]
[Result "1/2-1/2"]
[WhiteElo "1983"]
[BlackElo "2121"]
[TimeControl "180+2"]
[EndTime "17:34:39 PST"]
[Termination "Game drawn - insufficient material"]

1. e4 {[%clk 0:03:01.9]} 1... e5 {[%clk 0:03:00.7]} 2. Nf3 {[%clk 0:03:02.5]}
2... Nc6 {[%clk 0:03:01.2]} 3. d4 {[%clk 0:03:03.1]} 3... exd4 {[%clk
0:03:01.5]} 4. Bc4 {[%clk 0:03:02.8]} 4... Nf6 {[%clk 0:03:00.9]} 5. e5 {[%clk
0:03:03.3]} 5... Ng4 {[%clk 0:03:01.2]} 6. Qe2 {[%clk 0:02:51.4]} 6... Qe7
{[%clk 0:02:35.6]} 7. Bf4 {[%clk 0:02:44.3]} 7... f6 {[%clk 0:02:31.6]} 8. exf6
{[%clk 0:02:44.1]} 8... Qxe2+ {[%clk 0:01:58.1]} 9. Bxe2 {[%clk 0:02:46]} 9...
Nxf6 {[%clk 0:01:59.6]} 10. Nbd2 {[%clk 0:02:33]} 10... d5 {[%clk 0:01:53.1]}
11. Bxc7 {[%clk 0:02:22.9]} 11... Bf5 {[%clk 0:01:51.2]} 12. Bb5 {[%clk
0:02:11.4]} 12... Kd7 {[%clk 0:01:42.2]} 13. Bg3 {[%clk 0:01:50.9]} 13... Re8+
{[%clk 0:01:29.2]} 14. Kd1 {[%clk 0:01:51.6]} 14... Bg4 {[%clk 0:01:05]} 15. h3
{[%clk 0:01:42.9]} 15... Bh5 {[%clk 0:01:02.8]} 16. Nb3 {[%clk 0:01:28.7]} 16...
a6 {[%clk 0:00:50.4]} 17. Be2 {[%clk 0:01:18.8]} 17... Bxf3 {[%clk 0:00:45.8]}
18. Bxf3 {[%clk 0:01:07.3]} 18... Bd6 {[%clk 0:00:47.3]} 19. a3 {[%clk
0:00:50.8]} 19... Ne4 {[%clk 0:00:47]} 20. Bxe4 {[%clk 0:00:39.5]} 20... dxe4
{[%clk 0:00:46.5]} 21. Bxd6 {[%clk 0:00:38.3]} 21... Kxd6 {[%clk 0:00:47.4]} 22.
Ke2 {[%clk 0:00:39.5]} 22... Rhf8 {[%clk 0:00:46.8]} 23. Rad1 {[%clk 0:00:39.1]}
23... Kd5 {[%clk 0:00:46.7]} 24. Nxd4 {[%clk 0:00:31]} 24... Nxd4+ {[%clk
0:00:43.8]} 25. Ke3 {[%clk 0:00:32.3]} 25... Rf3+ {[%clk 0:00:27.7]} 26. gxf3
{[%clk 0:00:29.8]} 26... exf3+ {[%clk 0:00:28.9]} 27. Kf4 {[%clk 0:00:30.6]}
27... Rf8+ {[%clk 0:00:23.8]} 28. Kg3 {[%clk 0:00:28.1]} 28... Ke4 {[%clk
0:00:24.9]} 29. Rxd4+ {[%clk 0:00:10.9]} 29... Kxd4 {[%clk 0:00:25.8]} 30. Rd1+
{[%clk 0:00:12.8]} 30... Ke4 {[%clk 0:00:25.7]} 31. Rd7 {[%clk 0:00:13.6]} 31...
Rc8 {[%clk 0:00:25.9]} 32. c3 {[%clk 0:00:13.9]} 32... Rc6 {[%clk 0:00:25.1]}
33. Rxg7 {[%clk 0:00:14.4]} 33... Rb6 {[%clk 0:00:25.4]} 34. Rg4+ {[%clk
0:00:14.5]} 34... Kd3 {[%clk 0:00:26]} 35. Rb4 {[%clk 0:00:13.4]} 35... Rg6+
{[%clk 0:00:25.1]} 36. Rg4 {[%clk 0:00:13.5]} 36... Rb6 {[%clk 0:00:25.3]} 37.
Rd4+ {[%clk 0:00:10.7]} 37... Kc2 {[%clk 0:00:25.5]} 38. Rh4 {[%clk 0:00:09.3]}
38... Kxb2 {[%clk 0:00:24.3]} 39. Rxh7 {[%clk 0:00:10.3]} 39... Kxa3 {[%clk
0:00:25.2]} 40. h4 {[%clk 0:00:11.6]} 40... Kb3 {[%clk 0:00:25.9]} 41. h5 {[%clk
0:00:13]} 41... a5 {[%clk 0:00:26.1]} 42. Kxf3 {[%clk 0:00:10.9]} 42... a4
{[%clk 0:00:27.3]} 43. Rh8 {[%clk 0:00:12.4]} 43... a3 {[%clk 0:00:28]} 44. Ra8
{[%clk 0:00:13.7]} 44... Ra6 {[%clk 0:00:27]} 45. Rxa6 {[%clk 0:00:10.4]} 45...
bxa6 {[%clk 0:00:28.2]} 46. h6 {[%clk 0:00:11.9]} 46... a2 {[%clk 0:00:29.6]}
47. h7 {[%clk 0:00:13.3]} 47... a1=Q {[%clk 0:00:30.4]} 48. h8=Q {[%clk
0:00:14.7]} 48... Qxc3+ {[%clk 0:00:30.1]} 49. Qxc3+ {[%clk 0:00:14.2]} 49...
Kxc3 {[%clk 0:00:31.6]} 50. Ke4 {[%clk 0:00:15.6]} 50... a5 {[%clk 0:00:33.2]}
51. f4 {[%clk 0:00:16.7]} 51... a4 {[%clk 0:00:34.8]} 52. f5 {[%clk 0:00:18.1]}
52... a3 {[%clk 0:00:36.4]} 53. f6 {[%clk 0:00:19.5]} 53... a2 {[%clk
0:00:38.3]} 54. f7 {[%clk 0:00:20.9]} 54... a1=Q {[%clk 0:00:39.1]} 55. f8=Q
{[%clk 0:00:22.4]} 55... Qe1+ {[%clk 0:00:40.6]} 56. Kd5 {[%clk 0:00:23.8]}
56... Qd2+ {[%clk 0:00:40.8]} 57. Kc6 {[%clk 0:00:23.9]} 57... Qg2+ {[%clk
0:00:37]} 58. Kb6 {[%clk 0:00:23.9]} 58... Qg1+ {[%clk 0:00:37.2]} 59. Qc5+
{[%clk 0:00:24.7]} 59... Qxc5+ {[%clk 0:00:37.5]} 60. Kxc5 {[%clk 0:00:26.6]}
1/2-1/2

[Event "*** Titled Tuesday 3|2 Blitz (Late)"]
[Site "Chess.com"]
[Date "2017.01.03"]
[Round "3"]
[White "Abrito99"]
[Black "Iball95"]
[Result "1-0"]
[WhiteElo "2350"]
[BlackElo "2443"]
[TimeControl "180+2"]
[EndTime "17:34:45 PST"]
[Termination "Abrito99 won by resignation"]

1. e4 {[%clk 0:02:57.7]} 1... c5 {[%clk 0:02:55.4]} 2. Nf3 {[%clk 0:02:57.8]}
2... Nc6 {[%clk 0:02:56.9]} 3. Bb5 {[%clk 0:02:58.2]} 3... g6 {[%clk 0:02:57.8]}
4. Bxc6 {[%clk 0:02:58.4]} 4... dxc6 {[%clk 0:02:59.7]} 5. d3 {[%clk 0:02:58.7]}
5... Bg7 {[%clk 0:03:01.2]} 6. h3 {[%clk 0:02:59]} 6... Nf6 {[%clk 0:03:02.2]}
7. O-O {[%clk 0:03:00.5]} 7... O-O {[%clk 0:03:02.5]} 8. Be3 {[%clk 0:03:01.1]}
8... b6 {[%clk 0:03:02.8]} 9. Nc3 {[%clk 0:02:49.4]} 9... e5 {[%clk 0:03:02.8]}
10. Qd2 {[%clk 0:02:44.3]} 10... Qe7 {[%clk 0:02:56]} 11. a4 {[%clk 0:02:35.1]}
11... a5 {[%clk 0:02:51.2]} 12. Nh2 {[%clk 0:02:17.7]} 12... Ba6 {[%clk
0:02:24.7]} 13. f4 {[%clk 0:02:05.8]} 13... exf4 {[%clk 0:02:21.8]} 14. Rxf4
{[%clk 0:02:00.7]} 14... Rad8 {[%clk 0:02:14.2]} 15. Raf1 {[%clk 0:01:51.3]}
15... Nd7 {[%clk 0:02:14.1]} 16. R4f2 {[%clk 0:01:43.3]} 16... Ne5 {[%clk
0:02:07.6]} 17. Bg5 {[%clk 0:01:44]} 17... f6 {[%clk 0:02:07.5]} 18. Bf4 {[%clk
0:01:40.7]} 18... Bc8 {[%clk 0:02:00.8]} 19. Qe3 {[%clk 0:01:34.5]} 19... Be6
{[%clk 0:01:55.7]} 20. Bxe5 {[%clk 0:01:24.4]} 20... fxe5 {[%clk 0:01:53.1]} 21.
b3 {[%clk 0:01:16.4]} 21... Qh4 {[%clk 0:01:46.5]} 22. Nf3 {[%clk 0:01:10.2]}
22... Qg3 {[%clk 0:01:46.2]} 23. Ne2 {[%clk 0:01:03.9]} 23... Rxf3 {[%clk
0:01:29.9]} 24. Rxf3 {[%clk 0:01:04.7]} 24... Qh4 {[%clk 0:01:29.2]} 25. Qf2
{[%clk 0:01:05]} 25... Qe7 {[%clk 0:01:24.8]} 26. Nc3 {[%clk 0:00:58.1]} 26...
Bh6 {[%clk 0:01:25.7]} 27. Nd1 {[%clk 0:00:48.4]} 27... Bf4 {[%clk 0:01:19.5]}
28. Rxf4 {[%clk 0:00:48.1]} 28... exf4 {[%clk 0:01:19.8]} 29. Qxf4 {[%clk
0:00:49.7]} 29... Rf8 {[%clk 0:01:10]} 30. Qg3 {[%clk 0:00:44]} 30... Rxf1+
{[%clk 0:00:57.4]} 31. Kxf1 {[%clk 0:00:45.9]} 31... Qf6+ {[%clk 0:00:58.6]} 32.
Ke2 {[%clk 0:00:40.6]} 32... Qd8 {[%clk 0:00:39.2]} 33. Qe5 {[%clk 0:00:41]}
33... Bf7 {[%clk 0:00:40.6]} 34. Ne3 {[%clk 0:00:40.6]} 34... h5 {[%clk
0:00:37.5]} 35. g4 {[%clk 0:00:38.5]} 35... Qh4 {[%clk 0:00:34.3]} 36. gxh5
{[%clk 0:00:28.4]} 36... Qxh3 {[%clk 0:00:27.1]} 37. hxg6 {[%clk 0:00:29.5]}
37... Bxg6 {[%clk 0:00:29]} 38. Qb8+ {[%clk 0:00:29.1]} 38... Kg7 {[%clk
0:00:30.2]} 39. Qf4 {[%clk 0:00:26.1]} 39... Bh5+ {[%clk 0:00:30.6]} 40. Kd2
{[%clk 0:00:25.8]} 40... Bg6 {[%clk 0:00:25.4]} 41. Qe5+ {[%clk 0:00:26]} 41...
Kg8 {[%clk 0:00:25.9]} 42. Nf5 {[%clk 0:00:24.9]} 42... Bxf5 {[%clk 0:00:24.2]}
43. Qxf5 {[%clk 0:00:23.3]} 43... Qh2+ {[%clk 0:00:17.9]} 44. Kc3 {[%clk
0:00:23.8]} 44... Qg1 {[%clk 0:00:18.7]} 45. Qe6+ {[%clk 0:00:23.6]} 45... Kf8
{[%clk 0:00:19.3]} 46. Qf6+ {[%clk 0:00:23.9]} 46... Kg8 {[%clk 0:00:19.3]} 47.
Qd8+ {[%clk 0:00:22.5]} 47... Kf7 {[%clk 0:00:19.2]} 48. e5 {[%clk 0:00:21.3]}
48... Qe3 {[%clk 0:00:12.2]} 49. Qd7+ {[%clk 0:00:21.4]} 49... Kg6 {[%clk
0:00:12.7]} 50. Qxc6+ {[%clk 0:00:21.4]} 50... Kh5 {[%clk 0:00:13.6]} 51. Qe8+
{[%clk 0:00:21.9]} 51... Kg5 {[%clk 0:00:13.9]} 52. Qe7+ {[%clk 0:00:22.5]}
52... Kh5 {[%clk 0:00:13.2]} 53. Qf7+ {[%clk 0:00:20]} 53... Kg4 {[%clk
0:00:12.7]} 54. Qg6+ {[%clk 0:00:20]} 54... Kh4 {[%clk 0:00:13.2]} 55. Qe4+
{[%clk 0:00:21]} 55... Qxe4 {[%clk 0:00:13.5]} 56. dxe4 {[%clk 0:00:22]} 56...
Kg5 {[%clk 0:00:15.4]} 1-0

[Event "*** Titled Tuesday 3|2 Blitz (Late)"]
[Site "Chess.com"]
[Date "2017.01.03"]
[Round "3"]
[White "dretch"]
[Black "Houdinovic"]
[Result "0-1"]
[WhiteElo "2576"]
[BlackElo "2350"]
[TimeControl "180+2"]
[EndTime "17:35:29 PST"]
[Termination "Houdinovic won on time"]

1. d4 {[%clk 0:03:02]} 1... e6 {[%clk 0:03:02]} 2. c4 {[%clk 0:02:58.5]} 2...
Bb4+ {[%clk 0:03:02.7]} 3. Nd2 {[%clk 0:02:54.7]} 3... d5 {[%clk 0:03:02.3]} 4.
a3 {[%clk 0:02:47.8]} 4... Bxd2+ {[%clk 0:03:01.3]} 5. Qxd2 {[%clk 0:02:47]}
5... Nf6 {[%clk 0:03:03.2]} 6. e3 {[%clk 0:02:44.8]} 6... b6 {[%clk 0:02:59.7]}
7. Nf3 {[%clk 0:02:42.7]} 7... O-O {[%clk 0:02:51.9]} 8. b3 {[%clk 0:02:42.9]}
8... Bb7 {[%clk 0:02:47.5]} 9. Bb2 {[%clk 0:02:43.7]} 9... Nbd7 {[%clk
0:02:46.2]} 10. Bd3 {[%clk 0:02:41.9]} 10... Re8 {[%clk 0:02:42.2]} 11. Ne5
{[%clk 0:02:16.3]} 11... dxc4 {[%clk 0:01:59.6]} 12. Nxc4 {[%clk 0:01:57.5]}
12... Bxg2 {[%clk 0:01:36.6]} 13. Rg1 {[%clk 0:01:57.6]} 13... Bf3 {[%clk
0:01:38.2]} 14. Rg3 {[%clk 0:01:18.1]} 14... Bh5 {[%clk 0:01:36.1]} 15. e4
{[%clk 0:01:17.1]} 15... Bg6 {[%clk 0:01:26.3]} 16. f3 {[%clk 0:01:08.2]} 16...
c5 {[%clk 0:00:52.2]} 17. Rd1 {[%clk 0:01:02.3]} 17... cxd4 {[%clk 0:00:43]} 18.
Bxd4 {[%clk 0:00:53]} 18... e5 {[%clk 0:00:43.2]} 19. Bb2 {[%clk 0:00:53]} 19...
Nh5 {[%clk 0:00:43.9]} 20. Rg4 {[%clk 0:00:41]} 20... Qe7 {[%clk 0:00:23.4]} 21.
Bc2 {[%clk 0:00:39]} 21... Rad8 {[%clk 0:00:21.4]} 22. Qd6 {[%clk 0:00:16.9]}
22... f6 {[%clk 0:00:14.5]} 23. Qc7 {[%clk 0:00:12.9]} 23... Nf8 {[%clk
0:00:11.8]} 24. Qc6 {[%clk 0:00:07.1]} 24... Rxd1+ {[%clk 0:00:12.8]} 25. Kxd1
{[%clk 0:00:08.2]} 25... Rd8+ {[%clk 0:00:14.1]} 26. Kc1 {[%clk 0:00:09.4]}
26... Nf4 {[%clk 0:00:15]} 27. Kb1 {[%clk 0:00:08.9]} 27... N8e6 {[%clk
0:00:14.8]} 28. Rg1 {[%clk 0:00:08.8]} 28... Be8 {[%clk 0:00:14.5]} 29. Nxe5
{[%clk 0:00:05]} 29... Bxc6 {[%clk 0:00:12.4]} 30. Nxc6 {[%clk 0:00:05.8]} 30...
Qc7 {[%clk 0:00:13.8]} 31. Nxd8 {[%clk 0:00:06.6]} 31... Qxd8 {[%clk 0:00:14.8]}
32. Rd1 {[%clk 0:00:07.4]} 32... Qc7 {[%clk 0:00:16.3]} 33. b4 {[%clk
0:00:08.1]} 33... h5 {[%clk 0:00:17.5]} 34. Bb3 {[%clk 0:00:09.2]} 34... Kh7
{[%clk 0:00:18.9]} 35. Ka2 {[%clk 0:00:10.5]} 35... a5 {[%clk 0:00:19]} 36. bxa5
{[%clk 0:00:10.6]} 36... bxa5 {[%clk 0:00:20.9]} 37. Rd2 {[%clk 0:00:11.2]}
37... Qc6 {[%clk 0:00:21.5]} 38. Rc2 {[%clk 0:00:12.1]} 38... Qb5 {[%clk
0:00:22.1]} 39. Bc4 {[%clk 0:00:12.1]} 39... Qg5 {[%clk 0:00:22.2]} 40. Bb3
{[%clk 0:00:12.7]} 40... h4 {[%clk 0:00:19.7]} 41. Rc6 {[%clk 0:00:11.4]} 41...
Nf8 {[%clk 0:00:19]} 42. Rc2 {[%clk 0:00:11.4]} 42... h3 {[%clk 0:00:19.7]} 43.
Bc1 {[%clk 0:00:12.5]} 43... N8g6 {[%clk 0:00:19.1]} 44. Bf7 {[%clk 0:00:11.2]}
44... Ne5 {[%clk 0:00:18.6]} 45. Bb3 {[%clk 0:00:05.6]} 45... Ned3 {[%clk
0:00:19.4]} 46. Be3 {[%clk 0:00:04.3]} 46... Qe5 {[%clk 0:00:17.7]} 47. Bc4
{[%clk 0:00:04.7]} 47... a4 {[%clk 0:00:15.2]} 48. Rd2 {[%clk 0:00:04.1]} 48...
Qc3 {[%clk 0:00:15.2]} 49. Bf7 {[%clk 0:00:03.1]} 49... Nc1+ {[%clk 0:00:14.9]}
50. Kb1 {[%clk 0:00:03.9]} 50... Qxe3 {[%clk 0:00:10.6]} 51. Kxc1 {[%clk
0:00:04.1]} 51... Qxf3 {[%clk 0:00:10.5]} 52. Ba2 {[%clk 0:00:02.7]} 52... Qxa3+
{[%clk 0:00:11.6]} 53. Kd1 {[%clk 0:00:02.8]} 53... Qf3+ {[%clk 0:00:12.7]} 54.
Kc1 {[%clk 0:00:03.6]} 54... a3 {[%clk 0:00:12.9]} 55. Bb1 {[%clk 0:00:03.1]}
55... Qf1+ {[%clk 0:00:12.3]} 56. Kc2 {[%clk 0:00:03.3]} 56... Qc4+ {[%clk
0:00:13.6]} 57. Kd1 {[%clk 0:00:04]} 57... Qf1+ {[%clk 0:00:13.2]} 58. Kc2
{[%clk 0:00:04.5]} 58... Kh6 {[%clk 0:00:14.9]} 59. Rd1 {[%clk 0:00:02.8]} 59...
Qg2+ {[%clk 0:00:14.8]} 60. Kb3 {[%clk 0:00:02.3]} 60... Qb2+ {[%clk 0:00:14.4]}
61. Kc4 {[%clk 0:00:03.4]} 61... a2 {[%clk 0:00:15.8]} 62. Bxa2 {[%clk
0:00:03.3]} 62... Qc2+ {[%clk 0:00:17.2]} 63. Kb5 {[%clk 0:00:03.6]} 63... Qxd1
{[%clk 0:00:19.1]} 0-1

[Event "*** Titled Tuesday 3|2 Blitz (Late)"]
[Site "Chess.com"]
[Date "2017.01.03"]
[Round "3"]
[White "Divertissement"]
[Black "AndrBaryshpolets"]
[Result "0-1"]
[WhiteElo "2435"]
[BlackElo "2469"]
[TimeControl "180+2"]
[EndTime "17:36:03 PST"]
[Termination "AndrBaryshpolets won on time"]

1. c4 {[%clk 0:03:02]} 1... e6 {[%clk 0:03:00.8]} 2. Nc3 {[%clk 0:03:02.7]} 2...
d5 {[%clk 0:03:02]} 3. d4 {[%clk 0:03:02.5]} 3... Be7 {[%clk 0:03:02.9]} 4. Nf3
{[%clk 0:03:03.8]} 4... Nf6 {[%clk 0:03:03.5]} 5. Bf4 {[%clk 0:03:05.4]} 5...
O-O {[%clk 0:03:04.5]} 6. e3 {[%clk 0:03:06.9]} 6... Nbd7 {[%clk 0:03:04.4]} 7.
c5 {[%clk 0:03:08]} 7... Nh5 {[%clk 0:03:05]} 8. Bd3 {[%clk 0:03:09.3]} 8...
Nxf4 {[%clk 0:03:05.8]} 9. exf4 {[%clk 0:03:11.2]} 9... b6 {[%clk 0:03:07.1]}
10. b4 {[%clk 0:03:12.3]} 10... a5 {[%clk 0:03:08.3]} 11. a3 {[%clk 0:03:13.8]}
11... c6 {[%clk 0:03:09.5]} 12. O-O {[%clk 0:03:14.5]} 12... Qc7 {[%clk
0:03:10.7]} 13. g3 {[%clk 0:03:10.7]} 13... Ba6 {[%clk 0:03:11.3]} 14. Re1
{[%clk 0:03:08.1]} 14... Bxd3 {[%clk 0:03:08.7]} 15. Qxd3 {[%clk 0:03:08.7]}
15... Bf6 {[%clk 0:03:09]} 16. Ne5 {[%clk 0:03:03.6]} 16... Bxe5 {[%clk
0:03:09.3]} 17. fxe5 {[%clk 0:03:03.7]} 17... Ra7 {[%clk 0:03:10.2]} 18. Qc2
{[%clk 0:02:50.4]} 18... Rfa8 {[%clk 0:03:06]} 19. Qb2 {[%clk 0:02:51.6]} 19...
axb4 {[%clk 0:02:52.2]} 20. axb4 {[%clk 0:02:52]} 20... Qb7 {[%clk 0:02:53.9]}
21. Rxa7 {[%clk 0:02:39.1]} 21... Qxa7 {[%clk 0:02:33.6]} 22. b5 {[%clk
0:02:15.8]} 22... Qc7 {[%clk 0:02:16.4]} 23. bxc6 {[%clk 0:01:29.2]} 23... Qxc6
{[%clk 0:02:18.3]} 24. cxb6 {[%clk 0:01:30.2]} 24... Nxb6 {[%clk 0:02:12.8]} 25.
Rb1 {[%clk 0:01:25.1]} 25... h6 {[%clk 0:01:43.5]} 26. Qxb6 {[%clk 0:01:12.4]}
26... Qxc3 {[%clk 0:01:44]} 27. Qb4 {[%clk 0:01:12.5]} 27... Qc2 {[%clk
0:01:33.3]} 28. Qb2 {[%clk 0:01:01.4]} 28... Qxb2 {[%clk 0:01:26.2]} 29. Rxb2
{[%clk 0:01:02.5]} 29... Ra1+ {[%clk 0:01:28.1]} 30. Kg2 {[%clk 0:01:03.3]}
30... Rd1 {[%clk 0:01:30]} 31. Rb4 {[%clk 0:01:02.2]} 31... g5 {[%clk
0:01:31.6]} 32. g4 {[%clk 0:00:45.9]} 32... Kg7 {[%clk 0:01:29.8]} 33. h3 {[%clk
0:00:46.6]} 33... Kg6 {[%clk 0:01:27.6]} 34. Kg3 {[%clk 0:00:46.2]} 34... h5
{[%clk 0:01:11.4]} 35. gxh5+ {[%clk 0:00:25.9]} 35... Kxh5 {[%clk 0:01:12]} 36.
Kg2 {[%clk 0:00:23.9]} 36... Rd3 {[%clk 0:01:11]} 37. Rb7 {[%clk 0:00:15.7]}
37... Kg6 {[%clk 0:01:00.8]} 38. Rb4 {[%clk 0:00:16.4]} 38... Kf5 {[%clk
0:00:59.4]} 39. f3 {[%clk 0:00:09.8]} 39... Kf4 {[%clk 0:00:54.2]} 40. Rb7
{[%clk 0:00:10.8]} 40... Rd2+ {[%clk 0:00:53.1]} 41. Kf1 {[%clk 0:00:06.9]}
41... Rxd4 {[%clk 0:00:39.3]} 42. Rxf7+ {[%clk 0:00:06.6]} 42... Kxe5 {[%clk
0:00:40.7]} 43. Kf2 {[%clk 0:00:07.5]} 43... Rf4 {[%clk 0:00:37.5]} 44. Rg7
{[%clk 0:00:05.7]} 44... Kf6 {[%clk 0:00:37.8]} 45. Rg8 {[%clk 0:00:07]} 45...
Ra4 {[%clk 0:00:21.6]} 46. Rf8+ {[%clk 0:00:05.6]} 46... Kg7 {[%clk 0:00:22.8]}
47. Re8 {[%clk 0:00:06.4]} 47... Kf7 {[%clk 0:00:24.2]} 48. Rb8 {[%clk
0:00:06.9]} 48... Kf6 {[%clk 0:00:21.2]} 49. Rf8+ {[%clk 0:00:06.9]} 49... Ke5
{[%clk 0:00:22.5]} 50. Kg3 {[%clk 0:00:07.8]} 50... Rf4 {[%clk 0:00:19.9]} 51.
Rg8 {[%clk 0:00:08.6]} 51... Kf6 {[%clk 0:00:17.8]} 52. Rf8+ {[%clk 0:00:09.2]}
52... Ke5 {[%clk 0:00:19.4]} 53. Rg8 {[%clk 0:00:10.9]} 53... Rf5 {[%clk
0:00:20.7]} 54. Rd8 {[%clk 0:00:11.8]} 54... Rf7 {[%clk 0:00:20.1]} 55. Rg8
{[%clk 0:00:12.4]} 55... Kf6 {[%clk 0:00:18.6]} 56. Rd8 {[%clk 0:00:13]} 56...
Rh7 {[%clk 0:00:19.7]} 57. Kg4 {[%clk 0:00:13.9]} 57... Rh4+ {[%clk 0:00:20.3]}
58. Kg3 {[%clk 0:00:15.5]} 58... d4 {[%clk 0:00:21.8]} 59. Rd7 {[%clk
0:00:15.6]} 59... Rf4 {[%clk 0:00:22.1]} 60. Rd8 {[%clk 0:00:16.6]} 60... e5
{[%clk 0:00:22.7]} 61. Rf8+ {[%clk 0:00:17.2]} 61... Ke7 {[%clk 0:00:23.7]} 62.
Ra8 {[%clk 0:00:17.9]} 62... d3 {[%clk 0:00:24.8]} 63. Ra7+ {[%clk 0:00:16.4]}
63... Kf6 {[%clk 0:00:25.4]} 64. Kf2 {[%clk 0:00:13.9]} 64... d2 {[%clk
0:00:23.5]} 65. Ra1 {[%clk 0:00:11.7]} 65... Rd4 {[%clk 0:00:19.6]} 66. Ke2
{[%clk 0:00:11.7]} 66... Kf5 {[%clk 0:00:21.1]} 67. Kd1 {[%clk 0:00:12.3]} 67...
Kf4 {[%clk 0:00:21.3]} 68. Ra5 {[%clk 0:00:13.9]} 68... Rd3 {[%clk 0:00:21.6]}
69. Ra4+ {[%clk 0:00:13.5]} 69... Kxf3 {[%clk 0:00:22.5]} 70. Rg4 {[%clk
0:00:15.1]} 70... e4 {[%clk 0:00:22.6]} 71. Rxg5 {[%clk 0:00:16.5]} 71... e3
{[%clk 0:00:23.8]} 72. Re5 {[%clk 0:00:02]} 72... Rc3 {[%clk 0:00:21.1]} 73.
Rf5+ {[%clk 0:00:03.1]} 73... Ke4 {[%clk 0:00:22]} 0-1